bitfinex/quotes_BTCUSD_20240915
["timestamp","ask_amount","ask_price","bid_price","bid_amount"]
[1726443273963,0.001644,59223.0,59222.0,0.268856]
[1726443274209,0.001644,59223.0,59209.0,0.337783]
[1726443274967,0.001644,59223.0,59198.0,0.371624]
[1726443274968,0.337721,59221.0,59203.0,0.168909]
[1726443275305,0.337721,59221.0,59201.0,0.168914]
[1726443275306,0.3194,59220.0,59201.0,0.168914]
[1726443275476,0.3194,59220.0,59196.0,0.168928]
[1726443275477,0.002,59213.0,59196.0,0.168928]
[1726443275724,0.168886,59212.0,59196.0,0.168928]
[1726443275973,0.170886,59212.0,59196.0,0.168928]
[1726443276218,0.168889,59211.0,59194.0,0.506804]
[1726443276464,0.168889,59211.0,59196.0,0.168929]
[1726443276710,0.337757,59215.0,59197.0,0.268926]
[1726443276952,0.002,59212.0,59197.0,0.268926]
[1726443277193,0.002,59212.0,59195.0,0.3717332]
[1726443277194,0.170886,59212.0,59196.0,0.1]
[1726443277445,0.168879,59214.0,59199.0,0.1]
[1726443277679,0.230873,59216.0,59199.0,0.1]
[1726443277918,0.06,59216.0,59203.0,0.1]
[1726443278158,0.228873,59216.0,59203.0,0.1]
[1726443278392,0.230873,59216.0,59203.0,0.1]
[1726443278636,0.06,59216.0,59203.0,0.1]
[1726443278875,0.001644,59213.0,59203.0,0.1]
[1726443279175,0.001644,59213.0,59200.0,0.168917]
[1726443279176,0.001644,59213.0,59200.0,0.1]
[1726443279429,0.001644,59213.0,59192.0,0.34788983]
[1726443279430,0.001644,59223.0,59215.0,0.168875]
[1726443279673,0.001644,59223.0,59192.0,0.34788983]
[1726443279674,0.001644,59223.0,59222.0,0.1]
[1726443280441,0.001644,59223.0,59213.0,0.1]
[1726443280655,0.001644,59223.0,59214.0,0.168878]
[1726443280894,0.001644,59223.0,59216.0,0.1]
[1726443281142,0.001644,59223.0,59195.0,0.023]
[1726443281143,0.03,59220.0,59195.0,0.023]
[1726443281385,0.03,59220.0,59205.0,0.168903]
[1726443281640,0.03,59220.0,59194.0,0.123]
[1726443281641,0.06,59217.0,59196.0,0.023]
[1726443281860,0.06,59217.0,59194.0,0.0568695]
[1726443281861,0.06,59217.0,59201.0,0.168914]
[1726443282107,0.22887,59217.0,59196.0,0.33786]
[1726443282326,0.0768823,59216.0,59201.0,0.168915]
[1726443282561,0.06,59216.0,59201.0,0.168914]
[1726443282780,0.002,59213.0,59202.0,0.1]
[1726443283276,0.002,59213.0,59202.0,0.268912]
[1726443283946,0.002,59213.0,59202.0,0.1]
[1726443284167,0.002,59213.0,59205.0,0.1]
[1726443285082,0.002,59213.0,59207.0,0.168897]
[1726443285557,0.002,59215.0,59207.0,0.1]
[1726443285792,0.06,59217.0,59210.0,0.16889]
[1726443286035,0.055,59217.0,59210.0,0.16889]
[1726443286731,0.32,59221.0,59210.0,0.16889]
[1726443286732,0.055,59220.0,59210.0,0.0606693]
[1726443286981,0.03,59220.0,59212.0,0.337767]
[1726443287219,0.32,59221.0,59212.0,0.168882]
[1726443287450,0.32,59221.0,59212.0,0.05673393]
[1726443287715,0.32,59221.0,59211.0,0.168887]
[1726443287978,0.01668361,59220.0,59210.0,0.1]
[1726443288205,0.001644,59223.0,59220.0,0.16886]
[1726443288448,0.001644,59223.0,59213.0,0.1]
[1726443288685,0.001644,59223.0,59217.0,0.168869]
[1726443288913,0.001644,59223.0,59217.0,0.337735]
[1726443289132,0.001644,59223.0,59216.0,0.1]
[1726443289395,0.001644,59223.0,59217.0,0.168868]
[1726443289874,0.001644,59223.0,59216.0,0.1]
[1726443290115,0.001644,59223.0,59216.0,0.337745]
[1726443290349,0.001644,59223.0,59219.0,0.168863]
[1726443291934,0.001644,59223.0,59220.0,0.16886]
[1726443292153,0.001644,59223.0,59222.0,0.168856]
[1726443292389,0.001644,59223.0,59220.0,0.168859]
[1726443293052,0.001644,59223.0,59221.0,0.168858]
[1726443293749,0.001644,59223.0,59222.0,0.168856]
[1726443294709,0.001644,59223.0,59222.0,0.506568]
[1726443294928,0.001644,59223.0,59222.0,0.168856]
[1726443295594,0.001644,59223.0,59219.0,0.337727]
[1726443295819,0.001644,59223.0,59220.0,0.16886]
[1726443296036,0.001644,59223.0,59221.0,0.168858]
[1726443297159,0.001644,59223.0,59222.0,0.168856]
[1726443297872,0.001644,59223.0,59220.0,0.16886]
[1726443298596,0.001644,59223.0,59220.0,0.337722]
[1726443298821,0.001644,59223.0,59220.0,0.16886]
[1726443299277,0.001644,59223.0,59219.0,0.1]
[1726443299512,0.001644,59223.0,59221.0,0.168858]
[1726443300227,0.001644,59223.0,59222.0,0.506568]
[1726443300482,0.001644,59223.0,59222.0,0.94428]
[1726443301477,0.001644,59223.0,59219.0,0.1]
[1726443301693,0.001644,59223.0,59206.0,0.1]
[1726443301918,0.001644,59223.0,59214.0,0.1]
[1726443302160,0.001644,59223.0,59214.0,0.07]
[1726443302654,0.01690911,59222.0,59214.0,0.07]
[1726443302927,0.025,59218.0,59212.0,0.000821]
[1726443303175,0.223875,59216.0,59212.0,0.000821]
[1726443303415,0.01690761,59215.0,59212.0,0.000821]
[1726443303657,0.35466061,59215.0,59212.0,0.000821]
[1726443303911,0.03,59210.0,59198.0,0.4665]
[1726443304173,0.03,59210.0,59180.0,0.067739]
[1726443304174,0.002,59201.0,59189.0,0.4665]
[1726443304399,0.168931,59196.0,59189.0,0.4665]
[1726443304615,0.002,59194.0,59181.0,0.168971]
[1726443304860,0.002,59194.0,59182.0,0.16897]
[1726443305111,0.002,59194.0,59182.0,0.337937]
[1726443305349,0.002,59194.0,59179.0,0.467322]
[1726443305350,0.002,59195.0,59179.0,0.467322]
[1726443305595,0.002,59196.0,59179.0,0.467322]
[1726443305831,0.002,59196.0,59184.0,0.168964]
[1726443306065,0.002,59196.0,59179.0,0.467322]
[1726443306507,0.002,59196.0,59182.0,0.337939]
[1726443306733,0.002,59196.0,59184.0,0.168964]
[1726443306965,0.002,59196.0,59187.0,0.1]
[1726443307208,0.002,59196.0,59186.0,0.168958]
[1726443307209,0.002,59196.0,59186.0,0.1]
[1726443308476,0.002,59204.0,59193.0,0.100822]
[1726443308745,0.3317,59211.0,59194.0,0.0438705]
[1726443308990,0.2498,59217.0,59193.0,0.100822]
[1726443308991,0.2178,59217.0,59206.0,0.168899]
[1726443309239,0.2178,59217.0,59200.0,0.1]
[1726443309240,0.38156689,59222.0,59210.0,0.168887]
[1726443309450,0.38156689,59222.0,59206.0,0.1]
[1726443309451,0.0034442,59219.0,59206.0,0.1]
[1726443309672,0.0034442,59219.0,59208.0,0.1]
[1726443309896,0.0034442,59219.0,59206.0,0.1]
[1726443310168,0.0034442,59219.0,59209.0,0.1]
[1726443310388,0.0034442,59219.0,59213.0,0.337761]
[1726443310623,0.0034442,59219.0,59214.0,0.1]
[1726443311086,0.0034442,59219.0,59214.0,0.268877]
[1726443311324,0.0034442,59219.0,59214.0,0.1]
[1726443311832,0.0034442,59219.0,59212.0,0.268884]
[1726443312304,0.0034442,59219.0,59212.0,0.1]
[1726443312540,0.0034442,59219.0,59214.0,0.1]
[1726443312760,0.0034442,59219.0,59214.0,0.268878]
[1726443312986,0.0034442,59219.0,59214.0,0.1]
[1726443312987,0.1723102,59219.0,59214.0,0.1]
[1726443313237,0.1723102,59219.0,59191.0,0.03]
[1726443313238,0.168885,59212.0,59194.0,0.33787]
[1726443313480,0.337758,59214.0,59195.0,0.337862]
[1726443313481,0.168891,59210.0,59195.0,0.337862]
[1726443313714,0.337764,59213.0,59190.0,0.337893]
[1726443313715,0.168886,59212.0,59190.0,0.337893]
[1726443313979,0.05954198,59211.0,59195.0,0.337865]
[1726443314210,0.0337758,59213.0,59191.0,0.01006472]
[1726443314211,0.002,59213.0,59191.0,0.01006472]
[1726443314453,0.055,59214.0,59203.0,0.168909]
[1726443314680,0.055,59214.0,59198.0,0.1]
[1726443314681,0.002,59207.0,59198.0,0.1]
[1726443314896,0.002,59211.0,59198.0,0.268921]
[1726443315119,0.002,59211.0,59199.0,0.16892]
[1726443315591,0.002,59211.0,59198.0,0.1]
[1726443315592,0.168894,59209.0,59198.0,0.1]
[1726443315795,0.002,59208.0,59198.0,0.1]
[1726443316043,0.002,59204.0,59198.0,0.1]
[1726443316309,0.002,59201.0,59198.0,0.1]
[1726443316572,0.3068,59205.0,59193.0,0.000822]
[1726443316817,0.3068,59205.0,59195.0,0.168933]
[1726443317055,0.3068,59205.0,59196.0,0.1]
[1726443318430,0.3068,59205.0,59194.0,0.268935]
[1726443318647,0.3068,59205.0,59197.0,0.168927]
[1726443318859,0.3068,59205.0,59194.0,0.1]
[1726443319083,0.002,59204.0,59194.0,0.1]
[1726443319293,0.002,59204.0,59194.0,0.268936]
[1726443319767,0.3068,59205.0,59196.0,0.168928]
[1726443319984,0.3068,59205.0,59194.0,0.1]
[1726443320197,0.3068,59205.0,59200.0,0.1]
[1726443320415,0.194,59206.0,59200.0,0.1]
[1726443320646,0.027,59211.0,59200.0,0.1]
[1726443320868,0.193896,59208.0,59200.0,0.1]
[1726443321141,0.002,59194.0,59193.0,0.000822]
[1726443321399,0.170936,59194.0,59193.0,0.000822]
[1726443321661,0.508808,59194.0,59193.0,0.000822]
[1726443322128,0.002,59199.0,59193.0,0.000822]
[1726443322344,0.168928,59197.0,59193.0,0.000822]
[1726443322566,0.002,59197.0,59193.0,0.000822]
[1726443323261,0.03,59198.0,59193.0,0.000822]
[1726443323484,0.055,59198.0,59193.0,0.000822]
[1726443323701,0.002,59197.0,59193.0,0.000822]
[1726443325536,0.193916,59201.0,59193.0,0.000822]
[1726443325537,0.002,59201.0,59193.0,0.000822]
[1726443325758,0.027,59201.0,59193.0,0.000822]
[1726443325985,0.002,59197.0,59193.0,0.000822]
[1726443326203,0.002,59203.0,59193.0,0.000822]
[1726443326709,0.002,59197.0,59193.0,0.000822]
[1726443327150,0.337824,59203.0,59193.0,0.000822]
[1726443327151,0.002,59198.0,59193.0,0.000822]
[1726443329257,0.057,59203.0,59193.0,0.000822]
[1726443329494,0.01709897,59202.0,59193.0,0.000822]
[1726443329720,0.225911,59203.0,59193.0,0.000822]
[1726443329948,0.168917,59201.0,59193.0,0.000822]
[1726443330177,0.170936,59194.0,59193.0,0.000822]
[1726443330426,0.025,59196.0,59193.0,0.000822]
[1726443330646,0.032,59197.0,59193.0,0.000822]
[1726443330647,0.025,59195.0,59193.0,0.000822]
[1726443331634,0.00963768,59194.0,59193.0,0.000822]
[1726443333145,0.002,59197.0,59193.0,0.000822]
[1726443333345,0.01044706,59194.0,59193.0,0.000822]
[1726443333563,0.170925,59198.0,59193.0,0.000822]
[1726443333783,0.01044706,59194.0,59193.0,0.000822]
[1726443334004,0.002,59198.0,59193.0,0.000822]
[1726443334227,0.01044706,59194.0,59193.0,0.000822]
[1726443334460,0.055,59201.0,59193.0,0.000822]
[1726443334753,0.01710348,59200.0,59193.0,0.000822]
[1726443334988,0.057,59204.0,59193.0,0.100822]
[1726443334989,0.002,59201.0,59193.0,0.100822]
[1726443335210,0.01042335,59199.0,59193.0,0.100822]
[1726443335446,0.002,59202.0,59193.0,0.269759]
[1726443335668,0.01042335,59198.0,59193.0,0.269759]
[1726443335925,0.002,59202.0,59193.0,0.000822]
[1726443336169,0.002,59202.0,59194.0,0.168935]
[1726443336396,0.055,59204.0,59195.0,0.168932]
[1726443336397,0.01042335,59201.0,59195.0,0.168932]
[1726443336842,0.01042335,59201.0,59193.0,0.000822]
[1726443336843,0.002,59201.0,59193.0,0.000822]
[1726443337089,0.21161713,59216.0,59193.0,0.000822]
[1726443337090,0.01042335,59200.0,59199.0,0.606764]
[1726443337571,0.001642,59212.0,59199.0,0.437843]
[1726443337807,0.002,59211.0,59200.0,0.1]
[1726443338072,0.002,59208.0,59200.0,0.268917]
[1726443338526,0.01042335,59207.0,59200.0,0.268917]
[1726443338762,0.01042335,59207.0,59196.0,0.337855]
[1726443338763,0.01042335,59207.0,59197.0,0.1]
[1726443339002,0.168908,59204.0,59193.0,0.000822]
[1726443339244,0.002,59201.0,59194.0,0.1]
[1726443339717,0.025,59206.0,59198.0,0.1]
[1726443339957,0.025,59206.0,59197.0,0.1]
[1726443339958,0.01043744,59200.0,59197.0,0.1]
[1726443340182,0.001642,59212.0,59199.0,0.1]
[1726443340425,0.001642,59212.0,59193.0,0.000822]
[1726443340426,0.01680323,59211.0,59200.0,0.1]
[1726443340649,0.02725307,59211.0,59208.0,0.168893]
[1726443340911,0.01044984,59211.0,59209.0,0.168893]
[1726443341148,0.001642,59212.0,59211.0,0.168887]
[1726443341386,0.001642,59212.0,59211.0,0.506662]
[1726443341646,0.001642,59212.0,59211.0,0.944437]
[1726443342178,0.001642,59212.0,59211.0,1.282212]
[1726443343542,0.001642,59212.0,59211.0,0.944437]
[1726443344472,0.001642,59212.0,59211.0,0.268887]
[1726443344968,0.001642,59212.0,59205.0,0.337808]
[1726443344969,0.001642,59212.0,59208.0,0.168894]
[1726443345224,0.001642,59212.0,59206.0,0.1]
[1726443345443,0.001642,59212.0,59209.0,0.1]
[1726443345680,0.001642,59212.0,59206.0,0.1]
[1726443345907,0.001642,59212.0,59206.0,0.268901]
[1726443346828,0.001642,59212.0,59205.0,0.168903]
[1726443347153,0.001642,59212.0,59207.0,0.1]
[1726443347375,0.01057308,59211.0,59207.0,0.1]
[1726443347807,0.01057308,59211.0,59207.0,0.268898]
[1726443348070,0.01057308,59211.0,59207.0,0.1]
[1726443348264,0.001642,59212.0,59210.0,0.1]
[1726443349198,0.001642,59212.0,59209.0,0.268892]
[1726443349876,0.001642,59212.0,59210.0,0.33778]
[1726443350186,0.001642,59212.0,59211.0,0.606662]
[1726443350617,0.001642,59212.0,59211.0,0.1]
[1726443350843,0.001642,59212.0,59211.0,0.606662]
[1726443351056,0.001642,59212.0,59211.0,0.268887]
[1726443351733,0.001642,59212.0,59211.0,0.606662]
[1726443351968,0.001642,59212.0,59211.0,1.00611588]
[1726443352693,0.001642,59212.0,59211.0,1.34389088]
[1726443353115,0.001642,59212.0,59211.0,1.282212]
[1726443354207,0.001642,59212.0,59211.0,1.305212]
[1726443355975,0.0034442,59219.0,59218.0,1.282072]
[1726443356237,0.0034442,59219.0,59218.0,1.305072]
[1726443356689,0.0034442,59219.0,59218.0,1.7733142]
[1726443357148,0.001644,59223.0,59222.0,1.281992]
[1726443357366,0.001644,59223.0,59222.0,1.304992]
[1726443359776,0.001644,59223.0,59222.0,1.642704]
[1726443360004,0.0012,59226.0,59222.0,1.642704]
[1726443360261,0.57452917,59245.0,59234.0,0.168821]
[1726443360262,1.0131028,59244.0,59234.0,0.168821]
[1726443360493,1.1818958,59244.0,59235.0,0.1]
[1726443360721,0.01065417,59243.0,59235.0,0.1268821]
[1726443360949,0.002,59242.0,59235.0,0.1268821]
[1726443361170,0.002,59242.0,59235.0,0.1]
[1726443361171,0.002,59237.0,59235.0,0.1]
[1726443361399,0.002,59237.0,59230.0,0.1]
[1726443361625,0.01265768,59236.0,59231.0,0.0268836]
[1726443361869,0.01065768,59236.0,59232.0,0.1]
[1726443362312,0.002,59237.0,59232.0,0.1]
[1726443362553,0.002,59237.0,59232.0,0.268826]
[1726443362773,0.002,59237.0,59232.0,0.1]
[1726443363003,0.01065768,59236.0,59233.0,0.0437669]
[1726443364143,0.002,59237.0,59233.0,0.0437669]
[1726443364377,0.01065768,59235.0,59233.0,0.0437669]
[1726443364597,0.002,59237.0,59233.0,0.0437669]
[1726443364826,0.01065768,59234.0,59233.0,0.0437669]
[1726443365048,0.002,59237.0,59233.0,0.0437669]
[1726443365283,0.002,59237.0,59234.0,0.1]
[1726443365511,0.01065768,59236.0,59234.0,0.1]
[1726443366000,0.01065768,59235.0,59234.0,0.1]
[1726443366224,0.002,59237.0,59234.0,0.1]
[1726443366225,0.002,59237.0,59234.0,0.268821]
[1726443366452,0.002,59237.0,59231.0,0.1]
[1726443366679,0.002,59237.0,59231.0,0.168829]
[1726443366905,0.01065768,59236.0,59232.0,0.1]
[1726443367126,0.01065768,59236.0,59232.0,0.268826]
[1726443367352,0.01065768,59236.0,59232.0,0.1]
[1726443367578,0.002,59237.0,59232.0,0.1]
[1726443367863,0.01065768,59235.0,59232.0,0.1]
[1726443368091,0.002,59237.0,59233.0,0.1]
[1726443368750,0.002,59237.0,59233.0,0.268824]
[1726443368976,0.002,59237.0,59233.0,0.1606495]
[1726443369201,0.03,59244.0,59233.0,0.1606495]
[1726443369428,0.322021,59245.0,59236.0,0.337632]
[1726443369685,0.01066204,59243.0,59238.0,0.33762]
[1726443369902,0.01066204,59243.0,59237.0,0.04982815]
[1726443369903,0.0005181,59243.0,59237.0,0.04982815]
[1726443370127,0.0005181,59243.0,59236.0,0.168814]
[1726443370128,0.002,59242.0,59236.0,0.168814]
[1726443370354,0.01068445,59242.0,59236.0,0.337631]
[1726443370579,0.01068445,59242.0,59237.0,0.0775273]
[1726443370811,0.01268445,59242.0,59237.0,0.168813]
[1726443371034,0.01320255,59242.0,59235.0,0.168817]
[1726443371267,0.01320255,59242.0,59236.0,0.1]
[1726443371515,0.002,59240.0,59236.0,0.1]
[1726443372075,0.0106896,59239.0,59236.0,0.1]
[1726443372322,0.0106896,59239.0,59236.0,0.1268827]
[1726443373034,0.0112077,59239.0,59236.0,0.12622408]
[1726443373276,0.0112077,59239.0,59236.0,0.29503908]
[1726443373535,0.0112077,59239.0,59236.0,0.02622408]
[1726443373998,0.0112077,59239.0,59235.0,0.268818]
[1726443374241,0.0112077,59239.0,59235.0,0.1]
[1726443374481,0.002,59238.0,59235.0,0.1]
[1726443374731,0.0132077,59239.0,59234.0,0.268821]
[1726443374976,0.0106872,59237.0,59234.0,0.3294689]
[1726443375210,0.0106872,59237.0,59236.0,0.1]
[1726443375490,0.0005181,59239.0,59237.0,0.168812]
[1726443375733,0.0005181,59239.0,59238.0,0.16881]
[1726443375970,0.0005181,59239.0,59238.0,0.506431]
[1726443376211,0.0005181,59239.0,59238.0,0.844052]
[1726443376462,0.9907391,59248.0,59237.0,0.02606479]
[1726443376721,0.9907391,59248.0,59232.0,0.337651]
[1726443376722,0.9907391,59248.0,59247.0,0.966922]
[1726443376958,0.69358021,59248.0,59247.0,1.64206]
[1726443377657,0.47683638,59248.0,59247.0,1.64206]
[1726443377917,0.14353638,59248.0,59247.0,1.64206]
[1726443378140,0.14353638,59248.0,59247.0,1.806766]
[1726443378372,0.000821,59253.0,59252.0,1.641934]
[1726443379544,0.000821,59253.0,59252.0,1.304393]
[1726443380042,0.0038618,59257.0,59256.0,0.971795]
[1726443380300,0.0038618,59257.0,59256.0,1.05405749]
[1726443380555,0.0038618,59257.0,59256.0,1.39157549]
[1726443381755,0.0038618,59257.0,59256.0,1.36857549]
[1726443382685,0.0038618,59257.0,59256.0,1.03105749]
[1726443382926,0.0038618,59257.0,59256.0,1.36857549]
[1726443383206,0.0038618,59257.0,59256.0,1.39157549]
[1726443384611,0.0038618,59257.0,59256.0,0.966795]
[1726443385125,0.0038618,59257.0,59241.0,0.4715]
[1726443385126,0.0038618,59257.0,59254.0,0.1]
[1726443385360,0.0038618,59257.0,59256.0,0.168759]
[1726443385581,0.0038618,59257.0,59256.0,0.268759]
[1726443385823,0.0038618,59257.0,59256.0,1.281313]
[1726443386043,0.0038618,59257.0,59256.0,1.4094443]
[1726443386506,0.0038618,59257.0,59256.0,1.4324443]
[1726443387705,0.0046818,59257.0,59256.0,1.4324443]
[1726443388377,0.0046818,59257.0,59256.0,1.4392103]
[1726443389307,0.0046818,59257.0,59256.0,1.7767283]
[1726443391202,0.0046818,59257.0,59256.0,1.8106083]
[1726443393549,0.0046818,59257.0,59256.0,0.943795]
[1726443395113,0.0046818,59257.0,59256.0,0.966795]
[1726443395573,0.0046818,59257.0,59256.0,1.304313]
[1726443397375,0.0046818,59257.0,59256.0,1.641831]
[1726443397603,0.0046818,59257.0,59256.0,1.304313]
[1726443397837,0.0001,59259.0,59258.0,0.966767]
[1726443398045,0.0001,59259.0,59258.0,1.304274]
[1726443398737,0.0001,59259.0,59258.0,1.641781]
[1726443399202,0.0001,59259.0,59258.0,1.675661]
[1726443399440,0.0001,59259.0,59258.0,1.79381019]
[1726443399671,0.00092,59259.0,59258.0,1.79381019]
[1726443400139,0.0047919,59266.0,59259.0,0.03]
[1726443400390,0.0047919,59266.0,59265.0,0.66308]
[1726443400620,0.0047919,59266.0,59265.0,1.404322]
[1726443400856,0.0047919,59266.0,59265.0,2.079256]
[1726443402366,0.001642,59272.0,59271.0,0.291716]
[1726443402607,0.001642,59272.0,59271.0,0.663029]
[1726443402808,0.001642,59272.0,59271.0,1.675328]
[1726443403073,0.001642,59272.0,59271.0,1.8428608]
[1726443403689,0.001642,59272.0,59271.0,2.1802938]
[1726443404371,0.001642,59272.0,59271.0,1.8428608]
[1726443405796,0.001642,59272.0,59271.0,1.8728608]
[1726443406823,0.001642,59272.0,59271.0,1.8428608]
[1726443407028,0.001642,59272.0,59271.0,1.8728608]
[1726443407646,0.001642,59272.0,59271.0,1.8428608]
[1726443407847,0.001642,59272.0,59271.0,1.8728608]
[1726443411207,0.001642,59272.0,59271.0,1.88327818]
[1726443411421,0.001642,59272.0,59271.0,0.88787938]
[1726443411655,0.001642,59272.0,59271.0,0.168716]
[1726443411882,0.01703008,59272.0,59271.0,0.168716]
[1726443412092,0.01703008,59272.0,59271.0,0.506149]
[1726443412327,0.01703008,59272.0,59271.0,0.843582]
[1726443412536,0.01703008,59272.0,59271.0,0.92895559]
[1726443412764,0.001642,59272.0,59271.0,0.92895559]
[1726443412988,0.001642,59272.0,59271.0,1.36638859]
[1726443413453,0.001642,59272.0,59271.0,1.05195559]
[1726443415674,0.001642,59272.0,59271.0,0.629149]
[1726443416114,0.001642,59272.0,59271.0,0.966582]
[1726443416341,0.01697819,59272.0,59271.0,0.966582]
[1726443416550,0.001642,59272.0,59268.0,0.1]
[1726443416809,0.001642,59272.0,59271.0,0.123]
[1726443417046,0.001642,59272.0,59271.0,0.1]
[1726443417953,0.001642,59272.0,59270.0,0.268719]
[1726443418192,0.001642,59272.0,59270.0,0.168719]
[1726443418402,0.001642,59272.0,59270.0,0.023]
[1726443418817,0.001642,59272.0,59271.0,0.1]
[1726443419470,0.001642,59272.0,59271.0,0.268716]
[1726443420616,0.001642,59272.0,59271.0,0.6690654]
[1726443421276,0.001642,59272.0,59271.0,0.606149]
[1726443422366,0.001642,59272.0,59271.0,0.674866]
[1726443422574,0.001642,59272.0,59271.0,0.606149]
[1726443424386,0.001642,59272.0,59271.0,0.268716]
[1726443424533,0.002252,59272.0,59269.0,0.1]
[1726443424778,0.002252,59272.0,59271.0,0.1]
[1726443425449,0.002252,59272.0,59268.0,0.168724]
[1726443425686,0.002252,59272.0,59267.0,0.00164]
[1726443425687,0.3293,59271.0,59267.0,0.00164]
[1726443426122,0.3293,59271.0,59268.0,0.168724]
[1726443426338,0.32991,59271.0,59269.0,0.168721]
[1726443426757,0.01531687,59270.0,59269.0,0.168721]
[1726443426968,0.01592687,59270.0,59269.0,0.168721]
[1726443427488,0.01592687,59270.0,59269.0,0.5569464]
[1726443427693,0.01592687,59270.0,59269.0,0.6569464]
[1726443428599,0.01592687,59270.0,59269.0,0.606165]
[1726443430806,0.01592687,59270.0,59267.0,0.00164]
[1726443431062,0.168725,59268.0,59267.0,0.00164]
[1726443431296,0.52407301,59268.0,59267.0,0.00164]
[1726443431533,0.01589801,59268.0,59267.0,0.00164]
[1726443431784,0.01589801,59268.0,59261.0,0.460488]
[1726443432030,0.01589801,59268.0,59263.0,0.168739]
[1726443432262,0.01789801,59268.0,59264.0,0.168734]
[1726443432501,0.18662301,59268.0,59264.0,0.168734]
[1726443432929,0.04238357,59268.0,59264.0,0.168734]
[1726443433139,0.04238357,59268.0,59265.0,0.168733]
[1726443433823,0.04238357,59268.0,59266.0,0.1]
[1726443434045,0.21110857,59268.0,59266.0,0.1]
[1726443434262,0.04238357,59268.0,59266.0,0.1]
[1726443434999,0.04238357,59268.0,59266.0,0.16873]
[1726443435225,0.04238357,59268.0,59267.0,0.843637]
[1726443435697,0.01589801,59268.0,59267.0,0.843637]
[1726443436863,0.01589801,59268.0,59267.0,1.304092]
[1726443437102,0.00061,59268.0,59267.0,1.304092]
[1726443439201,0.0158853,59268.0,59267.0,1.304092]
[1726443439637,0.0158853,59268.0,59267.0,1.45538854]
[1726443439875,0.00061,59268.0,59267.0,1.45538854]
[1726443440560,0.00061,59268.0,59267.0,1.79784354]
[1726443442502,0.00061,59268.0,59267.0,1.304092]
[1726443442764,0.00061,59268.0,59267.0,0.943637]
[1726443443023,0.02709257,59268.0,59267.0,0.943637]
[1726443444152,0.02691257,59268.0,59267.0,0.943637]
[1726443445634,0.02691257,59268.0,59267.0,1.281092]
[1726443445862,0.00043,59268.0,59267.0,1.281092]
[1726443446080,0.00043,59268.0,59267.0,1.43011707]
[1726443447751,0.00043,59268.0,59267.0,1.45311707]
[1726443447958,0.00043,59268.0,59267.0,1.304092]
[1726443448174,0.00043,59268.0,59267.0,1.305732]
[1726443448385,0.00125,59268.0,59267.0,1.305732]
[1726443448825,0.00125,59268.0,59267.0,1.648187]
[1726443449036,0.02773232,59268.0,59267.0,1.81942721]
[1726443449705,0.02773232,59268.0,59267.0,2.15688221]
[1726443449915,0.02773232,59268.0,59267.0,2.19076221]
[1726443450190,0.02773232,59268.0,59267.0,2.24131223]
[1726443452205,0.001642,59272.0,59271.0,0.173716]
[1726443452408,0.001642,59272.0,59271.0,1.87755712]
[1726443452409,0.001822,59272.0,59271.0,1.87755712]
[1726443454939,0.001822,59272.0,59271.0,1.88775652]
[1726443457203,0.000921,59279.0,59278.0,0.330576]
[1726443457432,0.000921,59279.0,59278.0,0.98182013]
[1726443457674,0.000921,59279.0,59278.0,1.94343472]
[1726443457905,0.000921,59279.0,59278.0,2.01928134]
[1726443458133,0.000921,59279.0,59278.0,2.35667434]
[1726443458597,0.000921,59279.0,59278.0,2.28082772]
[1726443459500,0.000921,59279.0,59278.0,2.33134527]
[1726443459918,0.000921,59279.0,59278.0,1.99395227]
[1726443460129,0.000921,59279.0,59278.0,2.01105541]
[1726443460411,0.000921,59279.0,59278.0,2.01105338]
[1726443460618,0.000921,59279.0,59278.0,1.96053786]
[1726443462904,0.000921,59279.0,59278.0,1.92448026]
[1726443464493,0.001642,59283.0,59282.0,1.523165]
[1726443464702,0.001642,59283.0,59282.0,1.646165]
[1726443468594,0.001642,59283.0,59282.0,1.308795]
[1726443468834,0.001642,59283.0,59282.0,1.280795]
[1726443470181,0.001642,59283.0,59282.0,1.45601943]
[1726443470390,0.001642,59283.0,59282.0,1.65324855]
[1726443471988,0.001642,59283.0,59282.0,1.65256611]
[1726443472237,0.001642,59283.0,59282.0,1.65756611]
[1726443472486,0.001642,59283.0,59282.0,1.99493611]
[1726443476278,0.001642,59283.0,59282.0,1.30311256]
[1726443478561,0.001642,59283.0,59282.0,0.96574256]
[1726443479289,0.001642,59283.0,59282.0,1.30311256]
[1726443479503,0.001642,59283.0,59282.0,0.96574256]
[1726443479715,0.001642,59283.0,59282.0,1.30311256]
[1726443479960,0.001642,59283.0,59282.0,1.45823274]
[1726443480191,0.001642,59283.0,59282.0,1.30311256]
[1726443480405,0.001642,59283.0,59282.0,0.96574256]
[1726443480636,0.001642,59283.0,59282.0,1.30311256]
[1726443488540,0.001642,59283.0,59282.0,0.96574256]
[1726443489003,0.001642,59283.0,59282.0,1.30311256]
[1726443489951,0.001642,59283.0,59282.0,1.47435277]
[1726443493521,0.001642,59283.0,59282.0,1.30311256]
[1726443495866,0.001642,59283.0,59278.0,0.09642368]
[1726443495867,0.520042,59283.0,59278.0,0.04586014]
[1726443496112,0.520042,59283.0,59278.0,0.00164]
[1726443496348,0.53394301,59283.0,59282.0,0.170327]
[1726443497093,0.53394301,59283.0,59282.0,0.001642]
[1726443498230,0.002,59280.0,59278.0,0.00164]
[1726443498674,0.0138883,59279.0,59278.0,0.00164]